[Event "Titled Tuesday Blitz August 1 Early 2023"]
[White "Ahmad, Khagan"]
[Black "Willy, Stephen"]
[WhiteFideId "13431552"]
[BlackFideId "30981468"]
[WhiteElo "2565"]
[BlackElo "2446"]
[Result "1-0"]
[Round "7"]
[TimeControl "180+1"]
[Date "2023.08.01"]
[WhiteClock "0:00:01"]
[BlackClock "0:00:04"]
[Board "110"]

1. d4 {[%clk 0:02:55]}  g6 {[%clk 0:02:56]} 2. c4 {[%clk 0:02:52]}  Bg7 {[%clk 0:02:56]} 3. Nc3 {[%clk 0:02:53]}  d6 {[%clk 0:02:52]} 4. Nf3 {[%clk 0:02:52]}  Nf6 {[%clk 0:02:50]} 5. e4 {[%clk 0:02:50]}  Nc6 {[%clk 0:02:49]} 6. Be2 {[%clk 0:02:48]}  Bg4 {[%clk 0:02:48]} 7. O-O {[%clk 0:02:46]}  Bxf3 {[%clk 0:02:48]} 8. Bxf3 {[%clk 0:02:46]}  e5 {[%clk 0:02:48]} 9. d5 {[%clk 0:02:42]}  Ne7 {[%clk 0:02:43]} 10. c5 {[%clk 0:02:36]}  dxc5 {[%clk 0:02:43]} 11. b4 {[%clk 0:01:53]}  cxb4 {[%clk 0:02:39]} 12. Qa4+ {[%clk 0:01:49]}  c6 {[%clk 0:02:21]} 13. Qxb4 {[%clk 0:01:36]}  cxd5 {[%clk 0:02:09]} 14. Ba3 {[%clk 0:01:32]}  d4 {[%clk 0:02:03]} 15. Nb5 {[%clk 0:01:32]}  Kf8 {[%clk 0:01:17]} 16. Nd6 {[%clk 0:01:15]}  b6 {[%clk 0:01:08]} 17. Rac1 {[%clk 0:01:06]}  Bh6 {[%clk 0:01:04]} 18. Qc4 {[%clk 0:00:56]}  Nfd5 {[%clk 0:00:53]} 19. Nb7 {[%clk 0:00:36]}  Qd7 {[%clk 0:00:40]} 20. Qxd5 {[%clk 0:00:35]}  Qxd5 {[%clk 0:00:31]} 21. exd5 {[%clk 0:00:36]}  Bxc1 {[%clk 0:00:30]} 22. Rxc1 {[%clk 0:00:37]}  Ke8 {[%clk 0:00:12]} 23. d6 {[%clk 0:00:34]}  Nf5 {[%clk 0:00:12]} 24. g4 {[%clk 0:00:23]}  Nh4 {[%clk 0:00:10]} 25. Bc6+ {[%clk 0:00:23]}  Kf8 {[%clk 0:00:10]} 26. d7+ {[%clk 0:00:23]}  Kg7 {[%clk 0:00:11]} 27. Be7 {[%clk 0:00:24]}  f6 {[%clk 0:00:08]} 28. d8=Q {[%clk 0:00:21]}  Rhxd8 {[%clk 0:00:07]} 29. Nxd8 {[%clk 0:00:22]}  Rc8 {[%clk 0:00:06]} 30. Kf1 {[%clk 0:00:07]}  g5 {[%clk 0:00:05]} 31. Ke2 {[%clk 0:00:07]}  Ng6 {[%clk 0:00:06]} 32. Bb4 {[%clk 0:00:01]}  Rxd8 {[%clk 0:00:06]} 33. Be4 {[%clk 0:00:02]}  d3+ {[%clk 0:00:05]} 34. Kf3 {[%clk 0:00:01]}  Rd4 {[%clk 0:00:04]} 35. Rc7+ {[%clk 0:00:01]}  Kh6 {[%clk 0:00:03]} 36. Bxg6 {[%clk 0:00:01]}  hxg6 {[%clk 0:00:04]} 37. Bf8# {[%clk 0:00:01]} 1-0


[Site "https://www.chess.com"]

[Event "Titled Tuesday Blitz August 1 Early 2023"]
[White "Omorjan, Dejan"]
[Black "Schlecht, Daniel, Dr."]
[WhiteFideId "955345"]
[BlackFideId "4623959"]
[WhiteElo "2562"]
[BlackElo "2443"]
[Result "1-0"]
[Round "7"]
[TimeControl "180+1"]
[Date "2023.08.01"]
[WhiteClock "0:00:04"]
[BlackClock "0:00:00"]
[Board "112"]

1. d4 {[%clk 0:02:54]}  Nf6 {[%clk 0:02:59]} 2. Nf3 {[%clk 0:02:53]}  g6 {[%clk 0:02:58]} 3. Bg5 {[%clk 0:02:52]}  Bg7 {[%clk 0:02:58]} 4. c3 {[%clk 0:02:52]}  O-O {[%clk 0:02:57]} 5. Nbd2 {[%clk 0:02:53]}  d6 {[%clk 0:02:58]} 6. a4 {[%clk 0:02:53]}  c5 {[%clk 0:02:57]} 7. dxc5 {[%clk 0:02:54]}  dxc5 {[%clk 0:02:57]} 8. Qc2 {[%clk 0:02:55]}  Nc6 {[%clk 0:02:55]} 9. e4 {[%clk 0:02:51]}  h6 {[%clk 0:02:54]} 10. Be3 {[%clk 0:02:41]}  b6 {[%clk 0:02:51]} 11. h3 {[%clk 0:02:40]}  Qc7 {[%clk 0:02:42]} 12. Be2 {[%clk 0:02:35]}  Nh5 {[%clk 0:02:39]} 13. O-O {[%clk 0:02:13]}  Nf4 {[%clk 0:02:38]} 14. Rfe1 {[%clk 0:02:13]}  Nxe2+ {[%clk 0:02:37]} 15. Rxe2 {[%clk 0:02:14]}  Ba6 {[%clk 0:02:37]} 16. Ree1 {[%clk 0:02:03]}  Rad8 {[%clk 0:02:34]} 17. Nf1 {[%clk 0:01:51]}  Bd3 {[%clk 0:02:27]} 18. Qc1 {[%clk 0:01:51]}  Bxe4 {[%clk 0:02:22]} 19. Bf4 {[%clk 0:01:40]}  e5 {[%clk 0:02:17]} 20. Rxe4 {[%clk 0:01:29]}  exf4 {[%clk 0:02:16]} 21. Qxf4 {[%clk 0:01:19]}  Qxf4 {[%clk 0:02:15]} 22. Rxf4 {[%clk 0:01:20]}  Rfe8 {[%clk 0:02:13]} 23. Ne3 {[%clk 0:01:04]}  Ne5 {[%clk 0:01:48]} 24. Nxe5 {[%clk 0:00:53]}  Bxe5 {[%clk 0:01:48]} 25. Rf3 {[%clk 0:00:49]}  Bg7 {[%clk 0:01:36]} 26. Kf1 {[%clk 0:00:45]}  Rd2 {[%clk 0:01:34]} 27. Nc4 {[%clk 0:00:46]}  Rc2 {[%clk 0:01:31]} 28. Re1 {[%clk 0:00:42]}  Rxe1+ {[%clk 0:01:29]} 29. Kxe1 {[%clk 0:00:43]}  Rc1+ {[%clk 0:01:26]} 30. Kd2 {[%clk 0:00:41]}  Ra1 {[%clk 0:01:26]} 31. a5 {[%clk 0:00:24]}  b5 {[%clk 0:01:25]} 32. Nd6 {[%clk 0:00:24]}  Rxa5 {[%clk 0:01:25]} 33. Nxf7 {[%clk 0:00:22]}  b4 {[%clk 0:01:19]} 34. Nd6 {[%clk 0:00:11]}  bxc3+ {[%clk 0:01:15]} 35. bxc3 {[%clk 0:00:12]}  Ra2+ {[%clk 0:01:15]} 36. Kd3 {[%clk 0:00:12]}  Ra4 {[%clk 0:01:09]} 37. Nc4 {[%clk 0:00:11]}  Ra1 {[%clk 0:01:06]} 38. Ne3 {[%clk 0:00:08]}  Ra3 {[%clk 0:01:01]} 39. Nd5 {[%clk 0:00:08]}  a5 {[%clk 0:01:00]} 40. Kc4 {[%clk 0:00:08]}  a4 {[%clk 0:00:57]} 41. g4 {[%clk 0:00:07]}  Ra1 {[%clk 0:00:57]} 42. Ne7+ {[%clk 0:00:06]}  Kh7 {[%clk 0:00:57]} 43. Rf7 {[%clk 0:00:03]}  Rc1 {[%clk 0:00:57]} 44. Nd5 {[%clk 0:00:03]}  Kg8 {[%clk 0:00:54]} 45. Ra7 {[%clk 0:00:04]}  Ra1 {[%clk 0:00:53]} 46. f4 {[%clk 0:00:02]}  a3 {[%clk 0:00:53]} 47. f5 {[%clk 0:00:02]}  gxf5 {[%clk 0:00:52]} 48. gxf5 {[%clk 0:00:03]}  Rf1 {[%clk 0:00:51]} 49. Rxa3 {[%clk 0:00:03]}  h5 {[%clk 0:00:49]} 50. Ra7 {[%clk 0:00:02]}  Kf8 {[%clk 0:00:47]} 51. Nc7 {[%clk 0:00:01]}  Bf6 {[%clk 0:00:38]} 52. Ne6+ {[%clk 0:00:02]}  Kg8 {[%clk 0:00:37]} 53. Kxc5 {[%clk 0:00:03]}  Rxf5+ {[%clk 0:00:37]} 54. Kd6 {[%clk 0:00:03]}  Rf3 {[%clk 0:00:35]} 55. Ra8+ {[%clk 0:00:03]}  Kh7 {[%clk 0:00:34]} 56. Ra7+ {[%clk 0:00:03]}  Kg6 {[%clk 0:00:33]} 57. c4 {[%clk 0:00:04]}  Bc3 {[%clk 0:00:22]} 58. c5 {[%clk 0:00:04]}  Rd3+ {[%clk 0:00:19]} 59. Ke7 {[%clk 0:00:03]}  Re3 {[%clk 0:00:18]} 60. c6 {[%clk 0:00:03]}  Kf5 {[%clk 0:00:16]} 61. c7 {[%clk 0:00:03]}  Rxe6+ {[%clk 0:00:16]} 62. Kd7 {[%clk 0:00:04]}  Bf6 {[%clk 0:00:02]} 63. c8=Q {[%clk 0:00:04]}  Re7+ {[%clk 0:00:00]} 64. Kd6+ {[%clk 0:00:04]} 1-0


[Site "https://www.chess.com"]

[Event "Titled Tuesday Blitz August 1 Early 2023"]
[White "Postlmayer, Jakob"]
[Black "Kirillov, Dmitry"]
[WhiteFideId "1643622"]
[BlackFideId "34180572"]
[WhiteElo "2553"]
[BlackElo "2435"]
[Result "1-0"]
[Round "7"]
[TimeControl "180+1"]
[Date "2023.08.01"]
[WhiteClock "0:00:07"]
[BlackClock "0:00:00"]
[Board "115"]

1. c4 {[%clk 0:03:00]}  e5 {[%clk 0:02:56]} 2. d3 {[%clk 0:03:00]}  Nf6 {[%clk 0:02:56]} 3. Nf3 {[%clk 0:03:00]}  Nc6 {[%clk 0:02:55]} 4. a3 {[%clk 0:03:00]}  g6 {[%clk 0:02:42]} 5. b4 {[%clk 0:02:58]}  d6 {[%clk 0:02:39]} 6. Bb2 {[%clk 0:02:57]}  Bg7 {[%clk 0:02:39]} 7. e3 {[%clk 0:02:55]}  O-O {[%clk 0:02:39]} 8. Be2 {[%clk 0:02:55]}  h6 {[%clk 0:02:37]} 9. O-O {[%clk 0:02:54]}  Be6 {[%clk 0:02:37]} 10. Nbd2 {[%clk 0:02:50]}  Re8 {[%clk 0:02:35]} 11. Rc1 {[%clk 0:02:41]}  a5 {[%clk 0:02:35]} 12. b5 {[%clk 0:02:41]}  Nb8 {[%clk 0:02:35]} 13. Qc2 {[%clk 0:02:39]}  Nbd7 {[%clk 0:02:34]} 14. d4 {[%clk 0:02:36]}  exd4 {[%clk 0:02:33]} 15. Nxd4 {[%clk 0:02:36]}  Nc5 {[%clk 0:02:31]} 16. Nxe6 {[%clk 0:02:30]}  Rxe6 {[%clk 0:02:28]} 17. Bf3 {[%clk 0:02:23]}  a4 {[%clk 0:02:25]} 18. Rfe1 {[%clk 0:02:12]}  Qd7 {[%clk 0:02:23]} 19. Bd4 {[%clk 0:02:11]}  Ra7 {[%clk 0:01:30]} 20. Rcd1 {[%clk 0:02:04]}  Qe7 {[%clk 0:01:28]} 21. g3 {[%clk 0:01:59]}  Nfd7 {[%clk 0:01:25]} 22. Qb1 {[%clk 0:01:49]}  Nb6 {[%clk 0:01:04]} 23. Bd5 {[%clk 0:01:22]}  Nxd5 {[%clk 0:00:56]} 24. cxd5 {[%clk 0:01:23]}  Re5 {[%clk 0:00:44]} 25. Bxe5 {[%clk 0:01:23]}  Qxe5 {[%clk 0:00:44]} 26. Nf3 {[%clk 0:01:22]}  Qe8 {[%clk 0:00:40]} 27. b6 {[%clk 0:01:19]}  cxb6 {[%clk 0:00:39]} 28. Qxb6 {[%clk 0:01:20]}  Ra6 {[%clk 0:00:40]} 29. Qb4 {[%clk 0:01:19]}  Qe4 {[%clk 0:00:28]} 30. Qxe4 {[%clk 0:01:17]}  Nxe4 {[%clk 0:00:29]} 31. Rb1 {[%clk 0:01:15]}  Nc5 {[%clk 0:00:29]} 32. Rec1 {[%clk 0:01:01]}  Nb3 {[%clk 0:00:20]} 33. Rc2 {[%clk 0:01:00]}  Rb6 {[%clk 0:00:19]} 34. Nd2 {[%clk 0:00:55]}  Rb5 {[%clk 0:00:18]} 35. Kg2 {[%clk 0:00:52]}  Kh7 {[%clk 0:00:15]} 36. e4 {[%clk 0:00:49]}  Bd4 {[%clk 0:00:13]} 37. Nf3 {[%clk 0:00:31]}  Bc5 {[%clk 0:00:13]} 38. Rc4 {[%clk 0:00:32]}  Ra5 {[%clk 0:00:11]} 39. Rb2 {[%clk 0:00:13]}  Bxa3 {[%clk 0:00:11]} 40. Ra2 {[%clk 0:00:14]}  b5 {[%clk 0:00:11]} 41. Rc7 {[%clk 0:00:12]}  Bb2 {[%clk 0:00:08]} 42. Rxb2 {[%clk 0:00:11]}  Nc5 {[%clk 0:00:04]} 43. e5 {[%clk 0:00:08]}  a3 {[%clk 0:00:04]} 44. Ra2 {[%clk 0:00:08]}  b4 {[%clk 0:00:05]} 45. e6 {[%clk 0:00:08]}  b3 {[%clk 0:00:04]} 46. Rxf7+ {[%clk 0:00:07]}  Kg8 {[%clk 0:00:05]} 47. Re2 {[%clk 0:00:07]}  a2 {[%clk 0:00:03]} 48. e7 {[%clk 0:00:07]}  Ra8 {[%clk 0:00:03]} 49. Rf6 {[%clk 0:00:02]}  a1=Q {[%clk 0:00:03]} 50. Rxg6+ {[%clk 0:00:03]}  Kf7 {[%clk 0:00:03]} 51. Rxh6 {[%clk 0:00:03]}  Qg7 {[%clk 0:00:03]} 52. Rh7 {[%clk 0:00:02]}  Qxh7 {[%clk 0:00:03]} 53. Ng5+ {[%clk 0:00:03]}  Kg6 {[%clk 0:00:04]} 54. Nxh7 {[%clk 0:00:04]}  Kxh7 {[%clk 0:00:04]} 55. e8=Q {[%clk 0:00:04]}  Rxe8 {[%clk 0:00:04]} 56. Rxe8 {[%clk 0:00:05]}  Kg7 {[%clk 0:00:04]} 57. Rb8 {[%clk 0:00:06]}  Kf6 {[%clk 0:00:04]} 58. f4 {[%clk 0:00:06]}  Kf5 {[%clk 0:00:05]} 59. Kf3 {[%clk 0:00:06]}  Kf6 {[%clk 0:00:04]} 60. g4 {[%clk 0:00:06]}  Kg6 {[%clk 0:00:04]} 61. h4 {[%clk 0:00:07]}  Na6 {[%clk 0:00:04]} 62. Rxb3 {[%clk 0:00:06]}  Nc5 {[%clk 0:00:00]} 63. Rb6 {[%clk 0:00:07]} 1-0


[Site "https://www.chess.com"]

[Event "Titled Tuesday Blitz August 1 Early 2023"]
[White "Dinosaurio_1975"]
[Black "Davidson, Kevin"]
[BlackFideId "2056810"]
[WhiteElo "2551"]
[BlackElo "2435"]
[Result "1-0"]
[Round "7"]
[TimeControl "180+1"]
[Date "2023.08.01"]
[WhiteClock "0:00:42"]
[BlackClock "0:00:00"]
[Board "116"]

1. e4 {[%clk 0:03:00]}  c5 {[%clk 0:02:58]} 2. Nf3 {[%clk 0:03:00]}  d6 {[%clk 0:02:54]} 3. Bb5+ {[%clk 0:02:59]}  Nd7 {[%clk 0:02:37]} 4. c3 {[%clk 0:02:58]}  a6 {[%clk 0:02:31]} 5. Ba4 {[%clk 0:02:58]}  Nf6 {[%clk 0:02:19]} 6. Bc2 {[%clk 0:02:58]}  e6 {[%clk 0:02:05]} 7. d4 {[%clk 0:02:54]}  Be7 {[%clk 0:02:05]} 8. O-O {[%clk 0:02:53]}  O-O {[%clk 0:02:04]} 9. e5 {[%clk 0:02:53]}  Nd5 {[%clk 0:01:59]} 10. Qd3 {[%clk 0:02:49]}  g6 {[%clk 0:01:59]} 11. Bh6 {[%clk 0:02:47]}  Re8 {[%clk 0:01:59]} 12. exd6 {[%clk 0:02:39]}  Bxd6 {[%clk 0:01:59]} 13. Ng5 {[%clk 0:02:39]}  cxd4 {[%clk 0:01:43]} 14. cxd4 {[%clk 0:02:29]}  Nb4 {[%clk 0:01:35]} 15. Qf3 {[%clk 0:02:21]}  Qf6 {[%clk 0:01:27]} 16. Qe2 {[%clk 0:01:25]}  Nxc2 {[%clk 0:01:13]} 17. Ne4 {[%clk 0:01:23]}  Qxd4 {[%clk 0:01:02]} 18. Nxd6 {[%clk 0:01:17]}  Qxd6 {[%clk 0:00:52]} 19. Qxc2 {[%clk 0:01:16]}  b5 {[%clk 0:00:35]} 20. Rd1 {[%clk 0:01:11]}  Qc5 {[%clk 0:00:26]} 21. Qe4 {[%clk 0:00:57]}  Rb8 {[%clk 0:00:14]} 22. Nc3 {[%clk 0:00:57]}  Bb7 {[%clk 0:00:13]} 23. Qf4 {[%clk 0:00:53]}  e5 {[%clk 0:00:04]} 24. Qh4 {[%clk 0:00:49]}  Qc6 {[%clk 0:00:03]} 25. f3 {[%clk 0:00:45]}  Rbd8 {[%clk 0:00:03]} 26. Nd5 {[%clk 0:00:44]}  f5 {[%clk 0:00:02]} 27. Ne7+ {[%clk 0:00:41]}  Rxe7 {[%clk 0:00:00]} 28. Qxe7 {[%clk 0:00:42]} 1-0


[Site "https://www.chess.com"]

[Event "Titled Tuesday Blitz August 1 Early 2023"]
[White "Andreev, Konstantin"]
[Black "Gauravthegm"]
[WhiteFideId "24239305"]
[WhiteElo "2540"]
[BlackElo "2430"]
[Result "1-0"]
[Round "7"]
[TimeControl "180+1"]
[Date "2023.08.01"]
[WhiteClock "0:00:14"]
[BlackClock "0:00:00"]
[Board "118"]

1. e4 {[%clk 0:03:00]}  c5 {[%clk 0:02:55]} 2. Nf3 {[%clk 0:03:01]}  g6 {[%clk 0:02:53]} 3. d4 {[%clk 0:03:01]}  cxd4 {[%clk 0:02:53]} 4. Nxd4 {[%clk 0:03:02]}  Bg7 {[%clk 0:02:53]} 5. Nc3 {[%clk 0:03:02]}  Nc6 {[%clk 0:02:53]} 6. Be3 {[%clk 0:03:01]}  Nf6 {[%clk 0:02:52]} 7. Bc4 {[%clk 0:03:01]}  O-O {[%clk 0:02:50]} 8. f3 {[%clk 0:02:57]}  d5 {[%clk 0:02:41]} 9. exd5 {[%clk 0:02:56]}  Na5 {[%clk 0:02:36]} 10. Bb3 {[%clk 0:02:52]}  Nxb3 {[%clk 0:02:36]} 11. Nxb3 {[%clk 0:02:53]}  a5 {[%clk 0:02:27]} 12. a4 {[%clk 0:02:51]}  e6 {[%clk 0:02:09]} 13. dxe6 {[%clk 0:02:50]}  Bxe6 {[%clk 0:02:08]} 14. Nd4 {[%clk 0:02:49]}  Bc4 {[%clk 0:02:00]} 15. Kf2 {[%clk 0:02:39]}  Re8 {[%clk 0:01:58]} 16. Re1 {[%clk 0:02:38]}  Ng4+ {[%clk 0:01:34]} 17. fxg4 {[%clk 0:02:29]}  Rxe3 {[%clk 0:01:33]} 18. Kxe3 {[%clk 0:02:27]}  Qf6 {[%clk 0:01:19]} 19. Ne4 {[%clk 0:01:38]}  Re8 {[%clk 0:01:10]} 20. Nf3 {[%clk 0:01:32]}  Qb6+ {[%clk 0:00:53]} 21. Nd4 {[%clk 0:01:13]}  f5 {[%clk 0:00:40]} 22. gxf5 {[%clk 0:01:10]}  gxf5 {[%clk 0:00:39]} 23. c3 {[%clk 0:01:08]}  Rxe4+ {[%clk 0:00:35]} 24. Kf2 {[%clk 0:01:08]}  Qxb2+ {[%clk 0:00:26]} 25. Kg1 {[%clk 0:00:59]}  Bxd4+ {[%clk 0:00:20]} 26. cxd4 {[%clk 0:00:57]}  Rg4 {[%clk 0:00:20]} 27. Qf3 {[%clk 0:00:52]}  Qxd4+ {[%clk 0:00:18]} 28. Qf2 {[%clk 0:00:46]}  Qg7 {[%clk 0:00:11]} 29. Re8+ {[%clk 0:00:42]}  Kf7 {[%clk 0:00:11]} 30. Rae1 {[%clk 0:00:43]}  Qg5 {[%clk 0:00:08]} 31. R1e7+ {[%clk 0:00:35]}  Kg6 {[%clk 0:00:09]} 32. Qb6+ {[%clk 0:00:26]}  Qf6 {[%clk 0:00:07]} 33. Qxf6+ {[%clk 0:00:24]}  Kxf6 {[%clk 0:00:07]} 34. Rxh7 {[%clk 0:00:21]}  Bd5 {[%clk 0:00:05]} 35. g3 {[%clk 0:00:20]}  Rxa4 {[%clk 0:00:05]} 36. Rd7 {[%clk 0:00:17]}  Bc6 {[%clk 0:00:04]} 37. Rd6+ {[%clk 0:00:17]}  Kg5 {[%clk 0:00:04]} 38. Rg8+ {[%clk 0:00:16]}  Kh5 {[%clk 0:00:04]} 39. Rg7 {[%clk 0:00:15]}  Ra1+ {[%clk 0:00:04]} 40. Kf2 {[%clk 0:00:15]}  Ra2+ {[%clk 0:00:05]} 41. Ke3 {[%clk 0:00:15]}  Ra3+ {[%clk 0:00:05]} 42. Kf4 {[%clk 0:00:15]}  Rf3+ {[%clk 0:00:04]} 43. Ke5 {[%clk 0:00:15]}  a4 {[%clk 0:00:04]} 44. Rd8 {[%clk 0:00:13]}  Re3+ {[%clk 0:00:00]} 45. Kf6 {[%clk 0:00:14]} 1-0


[Site "https://www.chess.com"]

[Event "Titled Tuesday Blitz August 1 Early 2023"]
[White "Bazilius, Augustinas"]
[Black "Aggelis, Nikolaos"]
[WhiteFideId "12832251"]
[BlackFideId "4213220"]
[WhiteElo "2417"]
[BlackElo "2534"]
[Result "1-0"]
[Round "7"]
[TimeControl "180+1"]
[Date "2023.08.01"]
[WhiteClock "0:00:37"]
[BlackClock "0:01:31"]
[Board "120"]

1. d4 {[%clk 0:03:00]}  f5 {[%clk 0:02:59]} 2. c4 {[%clk 0:03:01]}  Nf6 {[%clk 0:02:58]} 3. Nf3 {[%clk 0:03:01]}  g6 {[%clk 0:02:58]} 4. g3 {[%clk 0:03:01]}  Bg7 {[%clk 0:02:59]} 5. Bg2 {[%clk 0:03:00]}  O-O {[%clk 0:03:00]} 6. O-O {[%clk 0:03:00]}  d6 {[%clk 0:02:58]} 7. Nc3 {[%clk 0:02:48]}  c6 {[%clk 0:02:58]} 8. b3 {[%clk 0:02:45]}  Na6 {[%clk 0:02:58]} 9. Ba3 {[%clk 0:02:45]}  Qa5 {[%clk 0:02:57]} 10. Qc1 {[%clk 0:02:42]}  Ne4 {[%clk 0:02:53]} 11. Bb2 {[%clk 0:02:27]}  Nxc3 {[%clk 0:02:40]} 12. Bxc3 {[%clk 0:02:28]}  Qc7 {[%clk 0:02:40]} 13. Qb2 {[%clk 0:02:24]}  Be6 {[%clk 0:02:32]} 14. d5 {[%clk 0:02:15]}  Bxc3 {[%clk 0:02:30]} 15. Qxc3 {[%clk 0:02:14]}  Bf7 {[%clk 0:02:24]} 16. Ng5 {[%clk 0:02:09]}  Rae8 {[%clk 0:02:21]} 17. e4 {[%clk 0:02:05]}  e5 {[%clk 0:02:16]} 18. dxe6 {[%clk 0:02:02]}  Bxe6 {[%clk 0:02:16]} 19. Nxe6 {[%clk 0:01:54]}  Rxe6 {[%clk 0:02:17]} 20. exf5 {[%clk 0:01:55]}  gxf5 {[%clk 0:02:15]} 21. Rfe1 {[%clk 0:01:51]}  Nc5 {[%clk 0:02:09]} 22. b4 {[%clk 0:01:43]}  Ne4 {[%clk 0:02:08]} 23. Qc2 {[%clk 0:01:40]}  Qf7 {[%clk 0:01:59]} 24. Re2 {[%clk 0:01:34]}  d5 {[%clk 0:01:53]} 25. Rae1 {[%clk 0:01:29]}  Rfe8 {[%clk 0:01:49]} 26. cxd5 {[%clk 0:01:26]}  cxd5 {[%clk 0:01:50]} 27. Qb3 {[%clk 0:01:23]}  Re5 {[%clk 0:01:44]} 28. Rd1 {[%clk 0:01:03]}  Nf6 {[%clk 0:01:40]} 29. Rxe5 {[%clk 0:01:00]}  Rxe5 {[%clk 0:01:41]} 30. f4 {[%clk 0:00:57]}  Re2 {[%clk 0:01:39]} 31. Bxd5 {[%clk 0:00:49]}  Nxd5 {[%clk 0:01:40]} 32. Rxd5 {[%clk 0:00:46]}  Kg7 {[%clk 0:01:39]} 33. Qc3+ {[%clk 0:00:42]}  Kh6 {[%clk 0:01:32]} 34. Rd6+ {[%clk 0:00:38]}  Kh5 {[%clk 0:01:31]} 35. Qf3# {[%clk 0:00:37]} 1-0


[Site "https://www.chess.com"]

[Event "Titled Tuesday Blitz August 1 Early 2023"]
[White "Castella Garcia, Fausto"]
[Black "Golubev, Mikhail"]
[WhiteFideId "3501922"]
[BlackFideId "14100983"]
[WhiteElo "2409"]
[BlackElo "2533"]
[Result "0-1"]
[Round "7"]
[TimeControl "180+1"]
[Date "2023.08.01"]
[WhiteClock "0:00:00"]
[BlackClock "0:00:02"]
[Board "121"]

1. e4 {[%clk 0:02:41]}  c5 {[%clk 0:02:59]} 2. Nf3 {[%clk 0:02:41]}  d6 {[%clk 0:02:59]} 3. d4 {[%clk 0:02:41]}  Nf6 {[%clk 0:02:58]} 4. Nc3 {[%clk 0:02:39]}  cxd4 {[%clk 0:02:58]} 5. Nxd4 {[%clk 0:02:39]}  g6 {[%clk 0:02:59]} 6. f4 {[%clk 0:02:38]}  Nc6 {[%clk 0:02:57]} 7. Bb5 {[%clk 0:02:37]}  Bd7 {[%clk 0:02:57]} 8. Bxc6 {[%clk 0:02:36]}  bxc6 {[%clk 0:02:54]} 9. e5 {[%clk 0:02:34]}  Nd5 {[%clk 0:02:52]} 10. Nxd5 {[%clk 0:02:28]}  cxd5 {[%clk 0:02:52]} 11. O-O {[%clk 0:02:16]}  e6 {[%clk 0:02:40]} 12. exd6 {[%clk 0:02:05]}  Bxd6 {[%clk 0:02:35]} 13. b3 {[%clk 0:01:56]}  O-O {[%clk 0:02:06]} 14. Bb2 {[%clk 0:01:54]}  f6 {[%clk 0:02:06]} 15. Qf3 {[%clk 0:01:29]}  Qb6 {[%clk 0:01:52]} 16. Kh1 {[%clk 0:01:26]}  Rae8 {[%clk 0:01:52]} 17. Rae1 {[%clk 0:01:22]}  Rf7 {[%clk 0:01:42]} 18. Re2 {[%clk 0:01:02]}  Bc5 {[%clk 0:01:26]} 19. Qd3 {[%clk 0:00:54]}  a5 {[%clk 0:00:32]} 20. a4 {[%clk 0:00:48]}  Bxa4 {[%clk 0:00:26]} 21. Rfe1 {[%clk 0:00:38]}  Bd7 {[%clk 0:00:24]} 22. Nf3 {[%clk 0:00:32]}  Bb5 {[%clk 0:00:14]} 23. c4 {[%clk 0:00:28]}  dxc4 {[%clk 0:00:14]} 24. bxc4 {[%clk 0:00:28]}  Ba6 {[%clk 0:00:14]} 25. h4 {[%clk 0:00:23]}  Qc6 {[%clk 0:00:12]} 26. h5 {[%clk 0:00:21]}  gxh5 {[%clk 0:00:12]} 27. Nd4 {[%clk 0:00:17]}  Bxd4 {[%clk 0:00:12]} 28. Qxd4 {[%clk 0:00:16]}  Qxc4 {[%clk 0:00:12]} 29. Qf2 {[%clk 0:00:12]}  Qd5 {[%clk 0:00:10]} 30. Rd2 {[%clk 0:00:08]}  Qf5 {[%clk 0:00:10]} 31. Red1 {[%clk 0:00:08]}  Qg4 {[%clk 0:00:08]} 32. Rd7 {[%clk 0:00:07]}  Ref8 {[%clk 0:00:05]} 33. Rxf7 {[%clk 0:00:05]}  Rxf7 {[%clk 0:00:05]} 34. Rd8+ {[%clk 0:00:06]}  Kg7 {[%clk 0:00:06]} 35. Rd3 {[%clk 0:00:04]}  Kf8 {[%clk 0:00:04]} 36. Rg3 {[%clk 0:00:03]}  Qf5 {[%clk 0:00:03]} 37. Kh2 {[%clk 0:00:02]}  Bb7 {[%clk 0:00:03]} 38. Qb6 {[%clk 0:00:00]}  Rd7 {[%clk 0:00:02]} 0-1


[Site "https://www.chess.com"]

[Event "Titled Tuesday Blitz August 1 Early 2023"]
[White "Mikhalsky, Vladimir"]
[Black "Jaskolka, Tomasz"]
[WhiteFideId "14144352"]
[BlackFideId "1170791"]
[WhiteElo "2395"]
[BlackElo "2523"]
[Result "0-1"]
[Round "7"]
[TimeControl "180+1"]
[Date "2023.08.01"]
[WhiteClock "0:00:01"]
[BlackClock "0:00:47"]
[Board "127"]

1. d4 {[%clk 0:02:12]}  d5 {[%clk 0:02:57]} 2. c4 {[%clk 0:02:11]}  e5 {[%clk 0:02:58]} 3. dxe5 {[%clk 0:02:11]}  d4 {[%clk 0:02:58]} 4. Nf3 {[%clk 0:02:10]}  Nc6 {[%clk 0:02:59]} 5. g3 {[%clk 0:02:09]}  Be6 {[%clk 0:02:58]} 6. b3 {[%clk 0:02:09]}  Qd7 {[%clk 0:02:55]} 7. Bg2 {[%clk 0:02:08]}  O-O-O {[%clk 0:02:56]} 8. O-O {[%clk 0:01:43]}  h5 {[%clk 0:02:53]} 9. Ng5 {[%clk 0:01:40]}  Nxe5 {[%clk 0:02:45]} 10. Nxe6 {[%clk 0:01:38]}  Qxe6 {[%clk 0:02:43]} 11. Ba3 {[%clk 0:01:11]}  Nf6 {[%clk 0:02:27]} 12. Bxf8 {[%clk 0:01:10]}  Rhxf8 {[%clk 0:02:23]} 13. h4 {[%clk 0:01:09]}  Rg8 {[%clk 0:02:17]} 14. Nd2 {[%clk 0:01:08]}  g5 {[%clk 0:02:15]} 15. hxg5 {[%clk 0:01:04]}  Rxg5 {[%clk 0:02:14]} 16. f4 {[%clk 0:00:50]}  Rxg3 {[%clk 0:01:48]} 17. fxe5 {[%clk 0:00:50]}  Qh3 {[%clk 0:01:20]} 18. Rf2 {[%clk 0:00:42]}  Ng4 {[%clk 0:01:09]} 19. Kf1 {[%clk 0:00:21]}  Ne3+ {[%clk 0:01:06]} 20. Ke1 {[%clk 0:00:15]}  Rxg2 {[%clk 0:00:57]} 21. Qb1 {[%clk 0:00:12]}  Rg1+ {[%clk 0:00:55]} 22. Nf1 {[%clk 0:00:10]}  Rxf1+ {[%clk 0:00:54]} 23. Rxf1 {[%clk 0:00:09]}  Qxf1+ {[%clk 0:00:54]} 24. Kd2 {[%clk 0:00:10]}  Qf4 {[%clk 0:00:54]} 25. Qh7 {[%clk 0:00:01]}  Nxc4+ {[%clk 0:00:47]} 0-1


[Site "https://www.chess.com"]